fUST/lending_fUST_20250921
["ID","MTS","AMOUNT","RATE_DAILY","PERIOD"]
[386706340,1758463851085,-480.0,0.00020821,2]
[386706341,1758463851094,-480.0,0.00020821,2]
[386706342,1758463851104,-1980.26,0.00020821,2]
[386706343,1758463851113,-480.0,0.00020821,2]
[386706344,1758463851123,-480.0,0.00020821,2]
[386706345,1758463851134,-484.82,0.00020821,2]
[386706346,1758463851144,-500.0,0.00020822,2]
[386706347,1758463851154,-500.0,0.00020822,2]
[386706348,1758463851163,-500.0,0.00020822,2]
[386706349,1758463851173,-203.890194,0.00020822,2]
[386706350,1758463851182,-203.890194,0.00020822,2]
[386706351,1758463851192,-203.890194,0.00020822,2]
[386706352,1758463851202,-203.890194,0.00020822,2]
[386706353,1758463851211,-203.890194,0.00020822,2]
[386706354,1758463851221,-203.890194,0.00020822,2]
[386706355,1758463851231,-203.890194,0.00020822,2]
[386706356,1758463851241,-203.890194,0.00020822,2]
[386706357,1758463851251,-203.890194,0.00020822,2]
[386706358,1758463851260,-203.890194,0.00020822,2]
[386706359,1758463851269,-203.890194,0.00020822,2]
[386706360,1758463851279,-203.890194,0.00020822,2]
[386706361,1758463851288,-203.890194,0.00020822,2]
[386706362,1758463851297,-203.890194,0.00020822,2]
[386706363,1758463851307,-203.890194,0.00020822,2]
[386706364,1758463851317,-203.890194,0.00020822,2]
[386706365,1758463851326,-203.890194,0.00020822,2]
[386706366,1758463851335,-203.890194,0.00020822,2]
[386706367,1758463851345,-203.890194,0.00020822,2]
[386706368,1758463851355,-203.890197,0.00020822,2]
[386706369,1758463851364,-800.0,0.00020829,2]
[386706370,1758463851374,-500.0,0.00020868,2]
[386706371,1758463851383,-272.5966061,0.00020869,2]
[386706372,1758463851393,-420.0,0.00020882,2]
[386706373,1758463851406,-1505.0,0.00020884,2]
[386706374,1758463851422,-252.41532655,0.000209,2]
[386706375,1758463851438,-3874.5319705,0.000209,2]
[386706376,1758463851450,-151.0,0.000209,4]
[386706377,1758463851464,-385.87855096,0.0002093,2]
[386706378,1758463851478,-800.0,0.00020956,2]
[386706379,1758463851494,-800.0,0.00020961,2]
[386706380,1758463851509,-192.93927548,0.00020961,2]
[386706381,1758463851524,-12136.51323494,0.00020972,2]
[386706382,1758463851542,-800.0,0.00020973,2]
[386706383,1758463851556,-1680.0,0.00020982,2]
[386706384,1758463851570,-800.0,0.00020996,2]
[386706385,1758463851584,-250.15762685,0.00021,2]
[386706386,1758463851597,-272.83038381,0.00021,2]
[386706387,1758463851612,-19921.62877244,0.00021,3]
[386706388,1758463851825,-2185.73455985,0.00021,3]
[386706389,1758463851839,-5187.40017465,0.00021,3]
[386706390,1758463851851,-204.09519402,0.00021,2]
[386706391,1758463851863,-1336.05301091,0.00021,2]
[386706392,1758463851875,-160.0,0.00021,3]
[386706393,1758463851887,-160.0,0.00021,3]
[386706394,1758463851899,-3000.0,0.00021,2]
[386706395,1758463851912,-417.15472785,0.00021,3]
[386706396,1758463851924,-160.0,0.00021,3]
[386706397,1758463851936,-1000.0,0.00021,2]
[386706398,1758463851949,-301.0,0.00021,2]
[386706399,1758463851961,-800.0,0.00021002,2]
[386706400,1758463851972,-800.0,0.00021005,2]
[386706401,1758463851985,-2583.61249213,0.0002101,2]
[386706402,1758463852000,-416.38750787,0.0002101,2]
[386706403,1758463852012,-800.0,0.0002101,2]
[386706404,1758463852022,-916.02553684,0.0002102,2]
[386706405,1758463852170,-480.0,0.00019178,2]
[386706406,1758463852179,-480.0,0.00019178,2]
[386706407,1758463852189,-256.468099,0.00019178,2]
[386706408,1758463852198,-256.468099,0.00019178,2]
[386706409,1758463852207,-256.468099,0.00019452,2]
[386706410,1758463852217,-256.468099,0.00019452,2]
[386706411,1758463852227,-256.468099,0.00019452,2]
[386706412,1758463852236,-256.468099,0.00019452,2]
[386706413,1758463852246,-2083.97446316,0.0002102,2]
[386706414,1758463852258,-2675.52126474,0.0002103,2]
[386706415,1758463852270,-324.47873526,0.0002103,2]
[386706416,1758463852279,-500.0,0.00021034,2]
[386706417,1758463852289,-500.0,0.00021034,2]
[386706418,1758463852299,-500.0,0.00021034,2]
[386706419,1758463852309,-500.0,0.00021034,2]
[386706420,1758463852318,-3000.0,0.0002104,2]
[386706421,1758463852328,-3000.0,0.0002105,2]
[386706422,1758463852337,-800.0,0.00021054,2]
[386706423,1758463852347,-3000.0,0.0002106,2]
[386706424,1758463852356,-3000.0,0.0002107,2]
[386706425,1758463852366,-3000.0,0.0002108,2]
[386706426,1758463852376,-3000.0,0.0002109,2]
[386706427,1758463852385,-476.0,0.00021091,2]
[386706428,1758463852395,-366.09711813,0.00021095,2]
[386706429,1758463852407,-113.90288187,0.00021095,2]
[386706430,1758463852417,-480.0,0.00021095,2]
[386706431,1758463852427,-480.0,0.00021095,2]
[386706432,1758463852437,-247.42720563,0.00021095,2]
[386706433,1758463852446,-480.0,0.00021095,2]
[386706434,1758463852455,-480.0,0.00021095,2]
[386706435,1758463852466,-480.0,0.00021095,2]
[386706436,1758463852476,-586.76,0.00021095,2]
[386706437,1758463852725,-313.95249377,0.00021095,2]
[386706438,1758463852741,-166.04750623,0.00021095,2]
[386706439,1758463852750,-480.0,0.00021095,2]
[386706440,1758463852760,-440.60010805,0.00021095,2]
[386706441,1758463852771,-39.39989195,0.00021095,2]
[386706442,1758463852781,-480.0,0.00021095,2]
[386706443,1758463852791,-480.0,0.00021095,2]
[386706444,1758463852800,-480.0,0.00021095,2]
[386706445,1758463852810,-259.52914169,0.00021095,2]
[386706446,1758463852821,-828.55,0.00021095,2]
[386706447,1758463852830,-480.0,0.00021095,2]
[386706448,1758463852840,-480.0,0.00021095,2]
[386706449,1758463852850,-480.0,0.00021095,2]
[386706450,1758463852859,-1060.95,0.00021095,2]
[386706451,1758463852869,-819.74,0.00021095,2]
[386706452,1758463852879,-480.0,0.00021095,2]
[386706453,1758463852888,-480.0,0.00021095,2]
[386706454,1758463852898,-851.72,0.00021095,2]
[386706455,1758463852908,-1058.66,0.00021095,2]
[386706456,1758463852917,-8085.83,0.00021095,2]
[386706457,1758463852927,-480.0,0.00021095,2]
[386706458,1758463852936,-480.0,0.00021095,2]
[386706459,1758463852946,-480.0,0.00021095,2]
[386706460,1758463852955,-480.0,0.00021095,2]
[386706461,1758463852964,-359.32408749,0.00021095,2]
[386706462,1758463852976,-120.67591251,0.00021095,2]
[386706463,1758463852985,-480.0,0.00021095,2]
[386706464,1758463852995,-526.81,0.00021095,2]
[386706465,1758463853004,-548.72,0.00021095,2]
[386706466,1758463853013,-480.0,0.00021095,2]
[386706467,1758463853023,-852.81,0.00021095,2]
[386706468,1758463853032,-480.0,0.00021095,2]
[386706469,1758463853041,-13.92708643,0.00021095,2]
[386706470,1758463853110,-302.0,0.00019178,2]
[386706471,1758463853127,-169.59033385,0.00019178,2]
[386706472,1758463853136,-256.468099,0.00019178,2]
[386706473,1758463853145,-256.468099,0.00019178,2]
[386706474,1758463853155,-256.468099,0.00019178,2]
[386706475,1758463853165,-193.71695765,0.00019178,2]
[386706476,1758463853273,-62.75114135,0.00019178,2]
[386706477,1758463853283,-401.76764544,0.00019178,2]
[386706478,1758463853293,-480.0,0.00019178,2]
[386706479,1758463853302,-480.0,0.00019178,2]
[386706480,1758463853313,-480.0,0.00019178,2]
[386706481,1758463853323,-256.468099,0.00019452,2]
[386706482,1758463853332,-256.468099,0.00019452,2]
[386706483,1758463853342,-256.468099,0.00019452,2]
[386706484,1758463853351,-256.468099,0.00019452,2]
[386706485,1758463853360,-256.468099,0.00019452,2]
[386706486,1758463853370,-256.468099,0.00019452,2]
[386706487,1758463853380,-256.46810141,0.00019452,2]
[386706488,1758463853389,-542.43,0.00019452,2]
[386706489,1758463853399,-466.07291357,0.00021095,2]
[386706490,1758463853409,-480.0,0.00021095,2]
[386706491,1758463853418,-480.0,0.00021095,2]
[386706492,1758463853428,-346.84375586,0.00021095,2]
[386706493,1758463853439,-133.15624414,0.00021095,2]
[386706494,1758463853450,-480.0,0.00021095,2]
[386706495,1758463853460,-480.0,0.00021095,2]
[386706496,1758463853470,-480.0,0.00021095,2]
[386706497,1758463853479,-59.40955386,0.00021095,2]
[386706507,1758463902539,1948.95128242,0.00018603,2]
[386706508,1758463902868,974.47564121,0.00018868,2]
[386706534,1758464071223,162.0,0.00019,2]
[386706581,1758464818136,-216.31291214,0.00019078,2]
[386706582,1758464818158,-41.66327312,0.00019078,2]
[386706583,1758464825125,-1312.2871652,0.00019078,2]
[386706586,1758464876877,3700.0,0.00027397,120]
[386706592,1758464921620,269.44933233,0.0001515,20]
[386706614,1758465032094,-6452.58153893,0.00019078,2]
[386706615,1758465032104,-1200.0,0.00019162,2]
[386706616,1758465032113,-300.0,0.00019163,2]
[386706617,1758465032123,-300.0,0.00019163,2]
[386706618,1758465032132,-300.0,0.00019163,2]
[386706619,1758465032141,-1200.0,0.00019164,2]
[386706621,1758465032151,-500.0,0.00019164,2]
[386706623,1758465032160,-500.0,0.00019164,2]
[386706626,1758465032169,-500.0,0.00019164,2]
[386706630,1758465032179,-500.0,0.00019164,2]
[386706633,1758465032188,-547.13291666,0.00019164,2]
[386706635,1758465032197,-500.0,0.00019164,2]
[386706637,1758465032207,-322.58141515,0.00019164,2]
[386706640,1758465032226,-177.41858485,0.00019164,2]
[386706642,1758465032236,-500.0,0.00019164,2]
[386706644,1758465032246,-144.65204823,0.00019164,2]
[386706769,1758465037921,-355.34795177,0.00019164,2]
[386706770,1758465037931,-500.0,0.00019164,2]
[386706771,1758465037941,-168.91,0.00019168,3]
[386706772,1758465037951,-506.73,0.00019168,3]
[386706773,1758465037960,-701.81,0.00019168,3]
[386706774,1758465037969,-500.0,0.00019173,2]
[386706775,1758465037979,-500.0,0.00019173,2]
[386706776,1758465037989,-481.54724515,0.00019178,2]
[386706777,1758465037998,-482.25260332,0.00019178,2]
[386706778,1758465038008,-480.0,0.00019178,2]
[386706779,1758465038018,-480.0,0.00019178,2]
[386706781,1758465038027,-480.85631479,0.00019178,2]
[386706783,1758465038036,-480.0,0.00019178,2]
[386706785,1758465038046,-480.0,0.00019178,2]
[386706787,1758465038055,-480.0,0.00019178,2]
[386706789,1758465038064,-480.0,0.00019178,2]
[386706791,1758465038074,-480.0,0.00019178,2]
[386706793,1758465038084,-480.0,0.00019178,2]
[386706795,1758465038094,-480.0,0.00019178,2]
[386706797,1758465038103,-480.0,0.00019178,2]
[386706799,1758465038113,-480.0,0.00019178,2]
[386706801,1758465038123,-480.0,0.00019178,2]
[386706802,1758465038133,-480.0,0.00019178,2]
[386706803,1758465038142,-480.0,0.00019178,2]
[386706804,1758465038152,-480.0,0.00019178,2]
[386706805,1758465038162,-480.0,0.00019178,2]
[386706806,1758465038172,-480.0,0.00019178,2]
[386706807,1758465038181,-480.0,0.00019178,2]
[386706808,1758465038191,-480.0,0.00019178,2]
[386706809,1758465038200,-480.0,0.00019178,2]
[386706810,1758465038209,-370.47250194,0.00019178,2]
[386706811,1758465038221,-480.0,0.00019178,2]
[386706812,1758465038230,-480.0,0.00019178,2]
[386706813,1758465038239,-480.0,0.00019178,2]
[386706814,1758465038249,-480.0,0.00019178,2]
[386706815,1758465038258,-480.0,0.00019178,2]
[386706816,1758465038267,-480.0,0.00019178,2]
[386706817,1758465038277,-480.0,0.00019178,2]
[386706818,1758465038286,-480.0,0.00019178,2]
[386706819,1758465038295,-480.0,0.00019178,2]
[386706820,1758465038305,-480.0,0.00019178,2]
[386706821,1758465038314,-404.00217749,0.00019178,2]
[386706822,1758465038324,-480.0,0.00019178,2]
[386706823,1758465038333,-480.0,0.00019178,2]
[386706824,1758465038342,-480.0,0.00019178,2]
[386706825,1758465038355,-480.0,0.00019178,2]
[386706826,1758465038364,-480.0,0.00019178,2]
[386706827,1758465038374,-480.0,0.00019178,2]
[386706828,1758465038383,-480.0,0.00019178,2]
[386706829,1758465038392,-480.0,0.00019178,2]
[386706830,1758465038401,-480.0,0.00019178,2]
[386706831,1758465038411,-554.40764308,0.00019178,2]
[386706832,1758465038420,-498.58798232,0.00019178,2]
[386706833,1758465038429,-480.0,0.00019178,2]
[386706834,1758465038439,-480.0,0.00019178,2]
[386706835,1758465038448,-537.01042458,0.00019178,2]
[386706836,1758465038457,-480.0,0.00019178,2]
[386706837,1758465038466,-480.0,0.00019178,2]
[386706838,1758465038475,-480.0,0.00019178,2]
[386706839,1758465038484,-481.62003569,0.00019178,2]
[386706840,1758465038493,-480.0,0.00019178,2]
[386706841,1758465038502,-491.657313,0.00019178,2]
[386706842,1758465038512,-480.0,0.00019178,2]
[386706843,1758465038521,-480.0,0.00019178,2]
[386706844,1758465038530,-480.0,0.00019178,2]
[386706845,1758465038539,-480.0,0.00019178,2]
[386706846,1758465038549,-480.0,0.00019178,2]
[386706847,1758465038557,-337.8296137,0.00019178,2]
[386706848,1758465038566,-480.0,0.00019178,2]
[386706849,1758465038575,-480.0,0.00019178,2]
[386706850,1758465038585,-480.0,0.00019178,2]
[386706851,1758465038594,-480.0,0.00019178,2]
[386706852,1758465038603,-480.0,0.00019178,2]
[386706853,1758465038612,-480.0,0.00019178,2]
[386706854,1758465038622,-480.0,0.00019178,2]
[386706855,1758465038632,-480.0,0.00019178,2]
[386706856,1758465038640,-480.0,0.00019178,2]
[386706857,1758465038650,-480.0,0.00019178,2]
[386706858,1758465038659,-480.0,0.00019178,2]
[386706859,1758465038668,-480.0,0.00019178,2]
[386706860,1758465038677,-480.0,0.00019178,2]
[386706861,1758465038686,-480.0,0.00019178,2]
[386706862,1758465038695,-480.0,0.00019178,2]
[386706863,1758465038704,-480.0,0.00019178,2]
[386706864,1758465038715,-525.02632304,0.00019178,2]
[386706865,1758465038724,-469.26261065,0.00019178,2]
[386706866,1758465038733,-480.0,0.00019178,2]
[386706867,1758465038743,-480.0,0.00019178,2]
[386706868,1758465038752,-480.0,0.00019178,2]
[386706869,1758465038761,-480.0,0.00019178,2]
[386706870,1758465038770,-380.74268144,0.00019178,2]
[386706871,1758465038779,-480.0,0.00019178,2]
[386706872,1758465038789,-480.0,0.00019178,2]
[386706873,1758465038798,-480.0,0.00019178,2]
[386706874,1758465038808,-480.0,0.00019178,2]
[386706875,1758465038817,-480.0,0.00019178,2]
[386706876,1758465038827,-480.0,0.00019178,2]
[386706877,1758465038836,-213.53187359,0.00019178,2]
[386706878,1758465038845,-480.0,0.00019178,2]
[386706879,1758465038854,-480.0,0.00019178,2]
[386706880,1758465038862,-480.0,0.00019178,2]
[386706881,1758465038872,-480.0,0.00019178,2]
[386706882,1758465038881,-480.0,0.00019178,2]
[386706883,1758465038890,-480.0,0.00019178,2]
[386706884,1758465038899,-480.0,0.00019178,2]
[386706885,1758465038908,-480.0,0.00019178,2]
[386706886,1758465038917,-480.0,0.00019178,2]
[386706887,1758465038926,-480.0,0.00019178,2]
[386706888,1758465038935,-480.0,0.00019178,2]
[386706889,1758465038944,-480.0,0.00019178,2]
[386706890,1758465038953,-480.0,0.00019178,2]
[386706891,1758465038962,-480.0,0.00019178,2]
[386706892,1758465038971,-480.0,0.00019178,2]
[386706893,1758465038979,-480.0,0.00019178,2]
[386706894,1758465038989,-480.0,0.00019178,2]
[386706895,1758465038998,-480.0,0.00019178,2]
[386706896,1758465039008,-480.0,0.00019178,2]
[386706897,1758465039019,-480.0,0.00019178,2]
[386706898,1758465039029,-480.0,0.00019178,2]
[386706899,1758465039038,-480.0,0.00019178,2]
[386706900,1758465039048,-480.0,0.00019178,2]
[386706901,1758465039057,-480.0,0.00019178,2]
[386706902,1758465039067,-480.0,0.00019178,2]
[386706903,1758465039076,-480.0,0.00019178,2]
[386706904,1758465039085,-480.0,0.00019178,2]
[386706905,1758465039094,-480.0,0.00019178,2]
[386706906,1758465039103,-480.0,0.00019178,2]
[386706907,1758465039112,-480.0,0.00019178,2]
[386706908,1758465039122,-480.0,0.00019178,2]
[386706909,1758465039131,-480.0,0.00019178,2]
[386706910,1758465039140,-480.0,0.00019178,2]
[386706911,1758465039149,-480.0,0.00019178,2]
[386706912,1758465039158,-480.0,0.00019178,2]
[386706913,1758465039168,-480.0,0.00019178,2]
[386706914,1758465039177,-480.0,0.00019178,2]
[386706915,1758465039186,-313.48774268,0.00019178,2]
[386706916,1758465039195,-480.92,0.00019178,2]
[386706917,1758465039204,-480.0,0.00019178,2]
[386706918,1758465039213,-480.0,0.00019178,2]
[386706919,1758465039223,-480.0,0.00019178,2]
[386706920,1758465039233,-480.0,0.00019178,2]
[386706921,1758465039243,-480.0,0.00019178,2]
[386706922,1758465039252,-480.0,0.00019178,2]
[386706923,1758465039262,-480.0,0.00019178,2]
[386706924,1758465039271,-480.0,0.00019178,2]
[386706925,1758465039280,-480.0,0.00019178,2]
[386706926,1758465039290,-480.0,0.00019178,2]
[386706927,1758465039299,-490.84521654,0.00019178,2]
[386706928,1758465039308,-480.0,0.00019178,2]
[386706929,1758465039317,-480.0,0.00019178,2]
[386706930,1758465039326,-480.0,0.00019178,2]
[386706931,1758465039336,-480.0,0.00019178,2]
[386706932,1758465039345,-480.0,0.00019178,2]
[386706933,1758465039357,-480.0,0.00019178,2]
[386706934,1758465039366,-500.0,0.00019178,2]
[386706935,1758465039375,-480.0,0.00019178,2]
[386706936,1758465039384,-480.0,0.00019178,2]
[386706937,1758465039395,-758.87,0.00019178,2]
[386706938,1758465039404,-480.0,0.00019178,2]
[386706939,1758465039413,-480.0,0.00019178,2]
[386706940,1758465039423,-480.0,0.00019178,2]
[386706941,1758465039433,-297.66883059,0.00019178,2]
[386706942,1758465039442,-480.0,0.00019178,2]
[386706943,1758465039452,-480.0,0.00019178,2]
[386706944,1758465039462,-480.0,0.00019178,2]
[386706945,1758465039471,-480.0,0.00019178,2]
[386706946,1758465039480,-480.0,0.00019178,2]
[386706947,1758465039490,-480.0,0.00019178,2]
[386706948,1758465039500,-480.0,0.00019178,2]
[386706949,1758465039510,-480.0,0.00019178,2]
[386706950,1758465039518,-480.0,0.00019178,2]
[386706951,1758465039528,-480.0,0.00019178,2]
[386706952,1758465039537,-480.0,0.00019178,2]
[386706953,1758465039547,-480.0,0.00019178,2]
[386706954,1758465039556,-480.0,0.00019178,2]
[386706955,1758465039566,-480.0,0.00019178,2]
[386706956,1758465039575,-1189.96,0.00019178,2]
[386706957,1758465039584,-480.0,0.00019178,2]
[386706958,1758465039594,-480.0,0.00019178,2]
[386706959,1758465039604,-583.02774114,0.00019178,2]
[386706960,1758465039612,-480.0,0.00019178,2]
[386706961,1758465039622,-480.0,0.00019178,2]
[386706963,1758465039631,-480.0,0.00019178,2]
[386706965,1758465039640,-480.0,0.00019178,2]
[386706966,1758465039651,-480.0,0.00019178,2]
[386706967,1758465039660,-480.0,0.00019178,2]
[386706968,1758465039670,-480.0,0.00019178,2]
[386706969,1758465039679,-784.33,0.00019178,2]
[386706970,1758465039688,-480.0,0.00019178,2]
[386706972,1758465039697,-480.0,0.00019178,2]
[386706989,1758465039845,-480.0,0.00019178,2]
[386706991,1758465039855,-480.0,0.00019178,2]
[386706993,1758465039865,-480.0,0.00019178,2]
[386706995,1758465039875,-540.31,0.00019178,2]
[386706997,1758465039885,-480.0,0.00019178,2]
[386706998,1758465039894,-974.0,0.00019178,2]
[386706999,1758465039904,-480.0,0.00019178,2]
[386707000,1758465039913,-798.69,0.00019178,2]
[386707001,1758465039922,-480.0,0.00019178,2]
[386707002,1758465039932,-1879.92,0.00019178,2]
[386707003,1758465039941,-480.0,0.00019178,2]
[386707004,1758465039951,-480.0,0.00019178,2]
[386707005,1758465039960,-592.62871275,0.00019178,2]
[386707006,1758465039970,-480.0,0.00019178,2]
[386707007,1758465039980,-480.0,0.00019178,2]
[386707008,1758465039989,-480.0,0.00019178,2]
[386707009,1758465039999,-480.0,0.00019178,2]
[386707010,1758465040009,-480.0,0.00019178,2]
[386707011,1758465040018,-480.0,0.00019178,2]
[386707012,1758465040027,-480.0,0.00019178,2]
[386707013,1758465040037,-480.0,0.00019178,2]
[386707014,1758465040046,-480.0,0.00019178,2]
[386707015,1758465040055,-480.0,0.00019178,2]
[386707016,1758465040065,-480.0,0.00019178,2]
[386707017,1758465040073,-544.76,0.00019178,2]
[386707018,1758465040085,-480.0,0.00019178,2]
[386707019,1758465040095,-480.0,0.00019178,2]
[386707020,1758465040104,-480.0,0.00019178,2]
[386707021,1758465040113,-480.0,0.00019178,2]
[386707023,1758465040123,-480.0,0.00019178,2]
[386707024,1758465040132,-480.0,0.00019178,2]
[386707025,1758465040141,-480.0,0.00019178,2]
[386707027,1758465040150,-480.0,0.00019178,2]
[386707029,1758465040160,-5554.99,0.00019178,2]
[386707031,1758465040170,-480.0,0.00019178,2]
[386707032,1758465040179,-480.0,0.00019178,2]
[386707034,1758465040188,-480.0,0.00019178,2]
[386707036,1758465040197,-480.0,0.00019178,2]
[386707038,1758465040206,-480.0,0.00019178,2]
[386707040,1758465040215,-480.0,0.00019178,2]
[386707042,1758465040224,-480.0,0.00019178,2]
[386707044,1758465040234,-3076.35,0.00019178,2]
[386707046,1758465040243,-480.0,0.00019178,2]
[386707048,1758465040252,-480.0,0.00019178,2]
[386707050,1758465040261,-480.0,0.00019178,2]
[386707052,1758465040270,-1341.09,0.00019178,2]
[386707056,1758465040280,-480.0,0.00019178,2]
[386707059,1758465040289,-486.10266892,0.00019178,2]
[386707061,1758465040298,-882.74,0.00019178,2]
[386707063,1758465040307,-480.0,0.00019178,2]
[386707065,1758465040317,-1338.37,0.00019178,2]
[386707067,1758465040326,-480.0,0.00019178,2]
[386707069,1758465040336,-481.62278203,0.00019178,2]
[386707071,1758465040345,-480.0,0.00019178,2]
[386707073,1758465040357,-480.0,0.00019178,2]
[386707075,1758465040366,-480.0,0.00019178,2]
[386707077,1758465040376,-570.77,0.00019178,2]
[386707079,1758465040386,-1505.21,0.00019178,2]
[386707081,1758465040396,-1515.49,0.00019178,2]
[386707083,1758465040405,-480.0,0.00019178,2]
[386707086,1758465040416,-480.0,0.00019178,2]
[386707088,1758465040425,-694.13,0.00019178,2]
[386707090,1758465040435,-483.21260983,0.00019178,2]
[386707092,1758465040444,-480.0,0.00019178,2]
[386707094,1758465040453,-490.69,0.00019178,2]
[386707096,1758465040463,-481.46548439,0.00019178,2]
[386707097,1758465040473,-480.0,0.00019178,2]
[386707099,1758465040482,-480.0,0.00019178,2]
[386707101,1758465040492,-480.0,0.00019178,2]
[386707103,1758465040501,-480.0,0.00019178,2]
[386707106,1758465040511,-987.7,0.00019178,2]
[386707107,1758465040520,-480.0,0.00019178,2]
[386707110,1758465040530,-1336.02,0.00019178,2]
[386707111,1758465040539,-480.0,0.00019178,2]
[386707114,1758465040549,-480.0,0.00019178,2]
[386707116,1758465040559,-968.07,0.00019178,2]
[386707117,1758465040568,-480.0,0.00019178,2]
[386707119,1758465040577,-482.58620162,0.00019178,2]
[386707121,1758465040587,-451.77796304,0.00019178,2]
[386707123,1758465040596,-480.0,0.00019178,2]
[386707125,1758465040606,-546.47,0.00019178,2]
[386707127,1758465040615,-398.43238232,0.00019178,2]
[386707129,1758465040625,-480.0,0.00019178,2]
[386707131,1758465040634,-480.0,0.00019178,2]
[386707133,1758465040644,-480.0,0.00019178,2]
[386707135,1758465040653,-492.22612232,0.00019178,2]
[386707137,1758465040663,-480.0,0.00019178,2]
[386707139,1758465040672,-480.0,0.00019178,2]
[386707141,1758465040682,-480.0,0.00019178,2]
[386707143,1758465040692,-480.0,0.00019178,2]
[386707145,1758465040701,-480.0,0.00019178,2]
[386707147,1758465040711,-480.0,0.00019178,2]
[386707149,1758465040720,-480.0,0.00019178,2]
[386707151,1758465040730,-507.50853434,0.00019178,2]
[386707153,1758465040739,-480.0,0.00019178,2]
[386707155,1758465040748,-12922.81,0.00019178,2]
[386707157,1758465040758,-480.0,0.00019178,2]
[386707159,1758465040767,-486.19061607,0.00019178,2]
[386707161,1758465040776,-480.0,0.00019178,2]
[386707163,1758465040786,-480.0,0.00019178,2]
[386707166,1758465040796,-480.0,0.00019178,2]
[386707168,1758465040805,-698.8,0.00019178,2]
[386707169,1758465040815,-480.0,0.00019178,2]
[386707172,1758465040824,-480.0,0.00019178,2]
[386707173,1758465040833,-506.1,0.00019178,2]
[386707175,1758465040842,-480.0,0.00019178,2]
[386707178,1758465040853,-482.36592456,0.00019178,2]
[386707180,1758465040863,-480.0,0.00019178,2]
[386707182,1758465040872,-480.0,0.00019178,2]
[386707184,1758465040882,-480.0,0.00019178,2]
[386707186,1758465040892,-480.0,0.00019178,2]
[386707188,1758465040901,-480.0,0.00019178,2]
[386707189,1758465040911,-480.0,0.00019178,2]
[386707192,1758465040921,-480.0,0.00019178,2]
[386707193,1758465040930,-480.0,0.00019178,2]
[386707195,1758465040939,-480.0,0.00019178,2]
[386707197,1758465040948,-480.0,0.00019178,2]
[386707199,1758465040957,-550.18,0.00019178,2]
[386707201,1758465040966,-480.0,0.00019178,2]
[386707203,1758465040975,-480.0,0.00019178,2]
[386707205,1758465040985,-3297.46,0.00019178,2]
[386707207,1758465040994,-480.0,0.00019178,2]
[386707209,1758465041003,-480.0,0.00019178,2]
[386707211,1758465041012,-480.0,0.00019178,2]
[386707213,1758465041022,-480.0,0.00019178,2]
[386707215,1758465041031,-480.0,0.00019178,2]
[386707217,1758465041040,-1487.97,0.00019178,2]
[386707219,1758465041049,-480.0,0.00019178,2]